Cogmind - Beta 16.1 @@@ ROGUE MODE // 2026.03.20 @ 11:24:51 Player: Wulphy Result: Escaped! Performance ------------- Evolutions (9) 4500 Regions Visited (24) 4800 Robots Destroyed (420) 2100 Value Destroyed (25172) 25172 Prototype IDs (60) 1200 Alien Tech Used (0) 0 Bonus (18622) 18622 TOTAL SCORE: 56394 Bonus ------- High Alert Combat Kills 4765 Follower Combat Kills 3349 Hunted by Unchained 500 Entered Garrisons 1800 Used RIF Installer 5500 Win 3000 Friendly Fire -292 Cogmind --------- Core Integrity 454/1600 Matter 210/300 Energy 67/100 System Corruption 36% Temperature Cool (0) Movement Core (50) Location To Epsilon Eridani Parts ------- > --- POWER (3) -------- (None) > --- PROPULSION (6) --- (None) > --- UTILITY (13) ----- Advanced Targeting Computer Advanced Target Analyzer Relay Coupler [C] (42) Relay Coupler [C] (32) > --- WEAPON (3) ------- (None) > --- INVENTORY (5) ---- EM Disruption Field Advanced Shield Generator Enhanced Quantum Rifle Peak State ------------ > --- POWER ------------ Micro Antimatter Reactor Light Quantum Reactor Light Quantum Reactor > --- PROPULSION ------- Advanced Heavy Siege Treads Advanced Heavy Siege Treads Advanced Heavy Siege Treads > --- UTILITY ---------- Advanced Heat Sink Advanced Targeting Computer Advanced Targeting Computer Advanced Target Analyzer Advanced Weapon Cycler Advanced Phase Shifter Advanced Powered Armor EM Disruption Field Advanced Shield Generator Relay Coupler [C] Relay Coupler [C] Relay Coupler [C] Relay Coupler [C] > --- WEAPON ----------- Enhanced Quantum Rifle Heavy Disruptor Cannon > --- INVENTORY -------- Biometal Heavy Treads Advanced Shield Generator Relay Coupler [C] Advanced Remote Datajack [Rating: 192] Favorites ----------- Power Quantum Reactor Engine Reinforced Deuterium Engine Power Core Micro Nuclear Core Reactor Quantum Reactor Propulsion Armored Huge Wheel Treads Light Treads Leg Myomer Leg Wheel Armored Huge Wheel Hover Unit Cooled Linear Gravjet Flight Unit Cooled Q-thruster Utility Advanced Targeting Computer Device Seismic Detector Storage Huge Storage Unit Processor Advanced Targeting Computer Hackware Relay Coupler [Grunt] Protection Improved Medium Armor Plating Weapon Gauss Rifle Energy Gun Spread Laser Energy Cannon Powered Cannon Ballistic Gun Gauss Rifle Ballistic Cannon Heavy Linear Accelerator Launcher Mini Smartbomb Launcher Special Weapon Remote Datajack Impact Weapon Great Maul Slashing Weapon Dual-blade Saw Special Melee Weapon Datajack Build | -11 -10 -10 -8 -8 -8 -8 -7 -7 -6 -6 -5 -5 -5 -5 -4 -4 -4 -4 -3 -3 -2 -2 -2 -1 ------- Run | Yrd Mat Sub Mat Gar Mat Gar Fac Gar Fac Gar Fac Was Fac Gar Fac Gar Fac Gar Res Gar Res Gar Res Acc Slots Evolved 18 | . . . 4 . . . 2 . 2 . 2 . . . 2 . . . 2 . 2 . . 2 Power 2 | . . . . . . . . . 1 . . . . . . . . . 1 . . . . . Propulsion 4 | . . . 1 . . . . . . . . . . . . . . . . . 1 . . 2 Utility 11 | . . . 2 . . . 2 . 1 . 2 . . . 2 . . . 1 . 1 . . . Weapon 1 | . . . 1 . . . . . . . . . . . . . . . . . . . . . Parts Attached 318 | 7 9 12 18 15 9 8 17 18 4 17 2 . . 11 25 14 3 8 3 22 43 18 8 27 Power 37 | 1 1 3 1 2 . 1 2 3 1 3 . . . 2 3 2 . 1 1 1 4 2 . 3 Engine 12 | 1 1 3 1 1 . . 1 1 1 1 . . . . . . . . . . 1 . . . Core 5 | . . . . 1 . 1 1 2 . . . . . . . . . . . . . . . . Reactor 20 | . . . . . . . . . . 2 . . . 2 3 2 . 1 1 1 3 2 . 3 Propulsion 56 | 2 . 6 4 5 3 2 3 2 . . . . . 1 1 2 . . . 2 9 3 3 8 Treads 19 | 2 . 1 2 3 2 . . . . . . . . . . . . . . . 3 . 2 4 Leg 1 | . . . . . . . . . . . . . . . . . . . . . . 1 . . Wheel 34 | . . 5 2 2 1 2 3 2 . . . . . 1 1 2 . . . 2 6 1 . 4 Hover 1 | . . . . . . . . . . . . . . . . . . . . . . . 1 . Flight 1 | . . . . . . . . . . . . . . . . . . . . . . 1 . . Utility 160 | 2 3 1 8 5 2 2 8 10 3 9 2 . . 5 16 7 3 5 1 15 26 11 5 11 Device 72 | 1 2 . 3 4 . 1 4 3 3 3 2 . . 1 8 3 2 1 . 9 14 2 1 5 Storage 12 | 1 1 1 1 . . . . . . . . . . . 1 1 . 2 . . 2 1 . 1 Processor 10 | . . . 1 . . 1 1 . . . . . . . . . . . . . 1 . 4 2 Hackware 50 | . . . 1 . 2 . 2 7 . 6 . . . 3 5 2 1 2 . 4 6 7 . 2 Protection 16 | . . . 2 1 . . 1 . . . . . . 1 2 1 . . 1 2 3 1 . 1 Artifact . | . . . . . . . . . . . . . . . . . . . . . . . . . Weapon 65 | 2 5 2 5 3 4 3 4 3 . 5 . . . 3 5 3 . 2 1 4 4 2 . 5 Energy Gun 9 | 1 3 1 . . . . . . . . . . . . . . . . . . . 2 . 2 Energy Cannon 16 | . . . . . . 1 . 1 . 2 . . . 1 3 1 . 1 . 3 2 . . 1 Ballistic Gun 10 | 1 . 1 5 . 2 1 . . . . . . . . . . . . . . . . . . Ballistic Cannon 8 | . . . . . . 1 1 2 . 2 . . . . 1 . . . . . . . . 1 Launcher 9 | . 1 . . 2 1 . 1 . . 1 . . . 1 . . . 1 . 1 . . . . Special Weapon 9 | . 1 . . . . . 1 . . . . . . 1 1 1 . . 1 . 2 . . 1 Impact Weapon 1 | . . . . 1 . . . . . . . . . . . . . . . . . . . . Slashing Weapon 1 | . . . . . . . . . . . . . . . . 1 . . . . . . . . Piercing Weapon . | . . . . . . . . . . . . . . . . . . . . . . . . . Special Melee Weapon 2 | . . . . . 1 . 1 . . . . . . . . . . . . . . . . . Unidentified Prototypes 3 | . . . 1 . . . . . . . . . . . . . . . . 1 . . 1 . Corrupted Parts 1 | . . . . . . . . . . . . . . . . . . . . . . . . 1 System Corruption 12 | . . . . . . . . . . . . . . . . . . . . . . . . 12 Parts Lost 80 | . 1 3 . 3 . 6 1 1 . . . . . . 5 . . 1 . 3 29 9 . 18 Power 5 | . 1 . . . . 1 . . . . . . . . 1 . . . . . 2 . . . Propulsion 20 | . . 3 . 2 . 3 1 . . . . . . . . . . . . . 1 2 . 8 Utility 45 | . . . . 1 . 1 . 1 . . . . . . 3 . . . . 3 22 6 . 8 Weapon 10 | . . . . . . 1 . . . . . . . . 1 . . 1 . . 4 1 . 2 Highest Loss Streak 8 | . 1 1 . 2 . 3 1 1 . . . . . . 3 . . 1 . 2 8 6 . 8 To Critical Strikes 1 | . . . . . . . . . . . . . . . 1 . . . . . . . . . Average Backups 20 | 4 12 18 20 23 23 21 21 22 22 23 22 24 24 23 22 23 22 22 22 23 20 4 4 3 Power . | . . . . . . . . . . . 1 1 1 1 . 1 1 1 1 . . . . . Propulsion 2 | 2 2 4 3 4 3 2 2 2 1 1 1 1 1 1 2 2 2 3 3 3 3 1 1 . Utility 11 | . 6 6 8 11 12 11 11 13 14 13 12 14 14 13 10 14 15 14 13 14 12 2 3 2 Weapon 4 | . 3 6 5 4 5 5 4 3 4 5 5 6 5 5 6 4 4 4 5 4 3 . . . Tool/Special . | . . . . . . . . . . . . . . . . . . . . . . . . . Unused Backups 92 | . 8 1 5 5 1 7 2 9 1 6 1 . . 2 7 7 . 7 1 4 15 . . 3 Power 6 | . . . . 1 . . . . . 1 1 . . 1 . 1 . . . . 1 . . . Propulsion 7 | . 2 . 1 1 . . 1 . . . . . . . 1 . . . . . 1 . . . Utility 54 | . 4 1 . 3 . 5 1 7 . 4 . . . . 1 4 . 6 . 4 11 . . 3 Weapon 24 | . 2 . 4 . 1 2 . 2 1 1 . . . 1 5 2 . 1 . . 2 . . . Tool/Special 1 | . . . . . . . . . . . . . . . . . . . 1 . . . . . Average Slot Usage (%) 87 | . 99 99 99 100 100 90 82 83 84 85 87 88 88 87 85 80 85 85 88 88 76 34 34 64 Engine 4 | . 13 14 9 4 9 3 4 4 11 7 . . . . . . . . . . . . . . Reactor 6 | . . . . . . . . . . 5 11 11 11 11 10 15 15 13 13 14 10 2 . 5 Treads 4 | . 28 12 8 9 9 9 . . . . . . . . . . . . . . . 2 2 10 Wheel 11 | . . 15 18 17 17 17 14 15 13 13 11 11 11 11 10 10 10 10 9 9 12 1 . 1 Device 15 | . 14 14 10 9 7 8 18 12 13 13 22 23 23 23 23 17 19 16 19 14 17 3 . 10 Storage 7 | . 14 14 9 9 9 9 7 7 6 6 5 5 5 5 5 5 5 5 8 6 3 1 . . Processor 5 | . . . 6 9 9 14 10 13 6 6 5 5 5 5 5 5 5 5 4 4 2 1 14 10 Hackware 10 | . . . . . 1 . 3 9 20 19 17 17 17 16 16 13 15 18 18 21 11 11 17 17 Protection 2 | . . . 8 9 8 3 3 1 . . . . . . 2 4 5 4 . 1 3 1 . 3 Energy Gun 2 | . 17 19 . . . . . . . . . . . . . . . . . . . 2 . 1 Energy Cannon 2 | . . . . . . . . 2 1 2 . . . 2 5 6 5 6 9 8 7 . . 2 Ballistic Gun 4 | . 7 1 26 26 26 12 2 . . . . . . . . . . . . . . . . . Ballistic Cannon 2 | . . . . . . 6 7 7 6 6 5 5 5 4 2 . . . . . . . . . Special Weapon 3 | . 2 6 . . . . 3 3 4 3 4 5 4 2 2 2 4 4 4 3 3 . . . Peak Build Rating 192 | 7 12 15 33 40 44 43 50 60 65 88 94 92 91 102 129 131 131 131 141 139 161 111 78 192 Average Rating 77 | 5 9 12 30 37 39 38 45 53 60 75 91 91 91 96 113 129 129 124 136 132 131 65 57 147 On Entrance 69 | . 7 11 13 32 39 42 34 47 57 63 85 92 91 91 99 124 130 131 122 141 128 41 35 78 Avg Prop Armor Cover (%) 16 | . . 13 6 6 7 9 10 . . . . . . . . . . . . . 45 33 42 40 Naked Turns 11 | . . . . . . . . . . . . . . . . . . . . . 11 . . . Heaviest Build 272 | 12 32 52 109 114 114 119 122 129 136 178 176 171 167 188 192 195 163 162 186 185 272 53 . 104 Greatest Support 240 | 40 40 40 36 26 26 26 40 40 40 40 40 40 40 40 44 44 44 44 44 44 80 80 3 240 Greatest Overweight (x) 5 | . . 3 4 4 4 5 4 3 3 4 4 4 4 4 4 4 3 3 4 4 4 1 . 4 Average Overweight (x) 2 | . . 2 3 4 4 4 2 2 3 3 4 4 4 3 3 3 3 3 3 3 2 . . . Largest Inventory Capacity 25 | 8 15 20 25 25 25 25 25 25 25 25 25 25 25 25 25 25 25 25 25 25 25 5 5 15 Average Capacity 22 | 7 13 19 23 25 25 25 25 25 25 25 25 25 25 25 25 25 25 25 25 25 23 5 5 5 Most Carried 25 | 7 15 20 25 25 25 25 25 25 25 25 25 25 25 25 25 25 25 25 25 25 25 5 5 7 Average Carried 22 | 4 12 19 22 24 24 23 24 24 24 24 23 25 25 24 24 24 24 24 24 24 22 4 4 4 Final Capacity 25 | 8 15 20 25 25 25 25 25 25 25 25 25 25 25 25 25 25 25 25 25 25 5 5 5 5 Final Carried 25 | 7 15 20 25 24 25 24 25 25 25 25 25 25 25 25 25 25 25 25 25 25 5 5 5 3 Class Distribution -------------------- 49% | Botlord-Gunner 18% | Mutant 16% | Bothacker-Gunner 5% | Gunner Dominant Class ---------------- Mutant | -10/Materials Mutant | -10/Subcaves Gunner | -8/Materials Gunner | -8/Garrison Bothacker-Gunner | -8/Materials Bothacker-Gunner | -8/Garrison Bothacker-Gunner | -7/Factory Bothacker-Gunner | -7/Garrison Botlord-Gunner | -6/Factory Botlord-Gunner | -6/Garrison Botlord-Gunner | -5/Factory Botlord-Tank | -5/Waste Botlord-Tank | -5/Factory Botlord-Gunner | -5/Garrison Botlord-Gunner | -4/Factory Botlord-Gunner | -4/Garrison Botlord-Gunner | -4/Factory Botlord-Gunner | -4/Garrison Botlord-Gunner | -3/Research Botlord-Gunner | -3/Garrison Botlord-Gunner | -2/Research Mutant | -2/Garrison Mutant | -2/Research Mutant | -1/Access Resources | -11 -10 -10 -8 -8 -8 -8 -7 -7 -6 -6 -5 -5 -5 -5 -4 -4 -4 -4 -3 -3 -2 -2 -2 -1 ----------- Run | Yrd Mat Sub Mat Gar Mat Gar Fac Gar Fac Gar Fac Was Fac Gar Fac Gar Fac Gar Res Gar Res Gar Res Acc Matter Collected 14285 | 273 155 635 428 1309 650 641 808 841 217 1091 273 . 157 1591 1215 613 85 659 67 788 1035 378 . 376 Remotely 434 | . 35 . . . . . . . . . . . . . 399 . . . . . . . . . Salvage Created 18236 | 92 364 288 407 1428 974 935 898 464 108 874 301 . 311 803 1714 1826 418 1604 697 1471 1103 267 . 889 Parts 898 | 5 17 12 29 75 71 53 54 31 7 42 20 . 14 41 69 83 16 70 39 51 53 5 . 41 Haulers Intercepted 6 | . 2 . 2 . 1 . . . . . . . . . . . . . . . . . . 1 Recyclers Shooed 7 | 1 1 . . . . . 4 . . . . . . . 1 . . . . . . . . . Parts Field Recycled 18 | . . . . . . . 14 4 . . . . . . . . . . . . . . . . Retrieved Matter 207 | . . . . . . . 172 35 . . . . . . . . . . . . . . . . Parts Self-Destructed 11 | . . 11 . . . . . . . . . . . . . . . . . . . . . . Prevented . | . . . . . . . . . . . . . . . . . . . . . . . . . Parts Restored . | . . . . . . . . . . . . . . . . . . . . . . . . . Kills | -11 -10 -10 -8 -8 -8 -8 -7 -7 -6 -6 -5 -5 -5 -5 -4 -4 -4 -4 -3 -3 -2 -2 -2 -1 ------- Run | Yrd Mat Sub Mat Gar Mat Gar Fac Gar Fac Gar Fac Was Fac Gar Fac Gar Fac Gar Res Gar Res Gar Res Acc Combat Hostiles Destroyed 348 | . 9 12 5 35 20 27 7 18 2 22 4 . 3 27 31 28 2 31 8 31 15 2 . 9 Melee 1 | . . . . . . . . . . . . . . . . . . . . . . 1 . . Guns 86 | . 6 12 5 30 17 9 1 . . . . . . . . . . . . . . 1 . 5 Cannons 120 | . . . . . . 7 3 9 2 17 4 . . 11 10 16 2 16 6 7 8 . . 2 AOE 106 | . 3 . . 5 3 11 3 9 . 5 . . 1 15 14 6 . 9 . 19 3 . . . Classes Destroyed 21 | 2 5 1 2 4 . 1 . 1 . . 1 . . . 2 1 . . . . 1 . . . Worker 21 | . 2 . 1 . 3 . 6 . . . . . 1 . 2 . . . . . 4 . . 2 Builder 15 | . . . 1 . 1 . 5 . 1 . 1 . . . 5 . . . . . 1 . . . Tunneler 1 | 1 . . . . . . . . . . . . . . . . . . . . . . . . Hauler 6 | . 2 . 2 . 1 . . . . . . . . . . . . . . . . . . 1 Recycler 9 | 1 . . . . . . 4 . . . 1 . . . . . 2 . 1 . . . . . Mechanic 2 | . . . . . . . . . . . . . . . 1 . 1 . . . . . . . Operator 4 | . 1 . 1 . 1 . . . . . . . . . 1 . . . . . . . . . Watcher 5 | . . . . . . . . . . . 1 . . . 2 . 1 1 . . . . . . Swarmer 96 | . 3 . . 4 4 8 . 10 . 5 . . . 16 8 6 . 12 . 20 . . . . Cutter 11 | . . . . 2 . 1 . . . 2 . . . . . 5 . 1 . . . . . . Saboteur 1 | . . . . . . . . . . . . . . . . . . . . . 1 . . . Grunt 98 | . 6 1 2 16 9 9 4 2 1 5 1 . 4 5 6 3 . 12 . 7 5 . . . Brawler 4 | . . . . . . . . 1 . 1 . . . . 1 . . . . . 1 . . . Duelist 10 | . . . . 1 . . . . 1 1 . . . 4 2 . . . . . 1 . . . Protector 1 | . . . . . . . . . . . . . . . 1 . . . . . . . . . Sentry 36 | . . . 3 7 7 6 1 . . 3 . . . . 2 4 . . 1 . 1 . . 1 Specialist 4 | . . . . 3 . . . . . . . . . . 1 . . . . . . . . . Hunter 30 | . . . . 2 . . . 2 . 4 . . . 2 6 4 1 2 2 . . . . 5 Programmer 48 | . . . . . . 3 2 3 . 2 3 . . 1 6 5 1 5 5 2 5 2 . 3 Behemoth 4 | . . . . . . . . . . . . . . . . 1 . 1 . 1 1 . . . Subdweller 11 | . . 11 . . . . . . . . . . . . . . . . . . . . . . Thug 2 | . . . . . . . 1 . . . . . . . . . . . . 1 . . . . Butcher 1 | . . . . . . . . . . . . . . . . . . 1 . . . . . . Best Kill Streak 16 | 2 4 2 2 11 6 6 16 6 2 6 2 . 4 5 10 6 2 5 3 14 8 1 . 3 Combat Bots Only 14 | . 3 2 2 11 4 6 4 6 1 6 2 . 3 5 5 6 1 5 3 14 4 1 . 3 Max Kills in Single Turn 5 | 1 2 1 1 2 2 3 4 2 2 2 1 . 2 3 4 4 1 3 1 5 2 1 . 1 Gunslinging 1 | . . . . 1 1 1 . . . . . . . . . . . . . . . . . . Exploded 5 | . 2 . . 2 2 3 2 2 . 2 . . 1 3 4 4 . 3 . 5 1 . . . Melee 1 | . . . . . . . . . . . . . . . . . . . . . . 1 . . Uniques/NPCs Destroyed . | . . . . . . . . . . . . . . . . . . . . . . . . . Combat | -11 -10 -10 -8 -8 -8 -8 -7 -7 -6 -6 -5 -5 -5 -5 -4 -4 -4 -4 -3 -3 -2 -2 -2 -1 -------- Run | Yrd Mat Sub Mat Gar Mat Gar Fac Gar Fac Gar Fac Was Fac Gar Fac Gar Fac Gar Res Gar Res Gar Res Acc Hostile Shots Fired 2106 | . 34 46 15 108 40 98 99 37 11 97 9 . 2 81 179 99 4 66 10 76 438 117 5 435 Missed 678 | . 8 18 2 35 12 26 38 10 9 23 2 . 1 23 86 42 1 24 3 20 110 37 2 146 Hits 1428 | . 26 28 13 73 28 72 61 27 2 74 7 . 1 58 93 57 3 42 7 56 328 80 3 289 Melee 14 | . . . . 4 . 3 . . . 1 . . . 1 . . . 2 . . 3 . . . Projectile 1414 | . 26 28 13 69 28 69 61 27 2 73 7 . 1 57 93 57 3 40 7 56 325 80 3 289 AOE 9 | . . . . 2 . 2 . . . . . . . . . 4 . . . . . . . 1 Critical Strikes 60 | . 1 . . 2 3 5 1 . . 2 2 . . 2 8 5 . . 1 4 10 4 . 10 Part Disruptions 4 | . . . . . . 1 . . . . . . . . . . . . . . 1 . . 2 Damage Taken 24327 | . 328 717 189 1154 411 1251 467 533 34 611 96 . 9 669 1213 934 62 680 173 1169 5607 1831 76 6113 Core 4004 | . 41 136 40 128 . 257 50 45 3 51 13 . . 65 253 78 19 139 78 217 619 550 76 1146 Absorbed by Shields 2852 | . . . . . . . 141 173 30 548 91 . 9 395 428 79 . 56 . 122 343 135 . 302 Reduced by Siege Mode 361 | . . . . . . . . . . . . . . . . . . . . . 95 47 . 219 Ignored by Resistances 349 | . . . . . . . 20 . . . . . . . 32 297 . . . . . . . . Regen/Repaired (Parts) 376 | . . . . . 76 . 28 . . 58 29 . . 118 43 . . . . . 24 . . . Core Remaining (%) 59 | 100 . 29 . . . 22 . 86 . 93 . . . 92 . . . 57 . 77 . . 14 28 Volleys Fired 1518 | 3 43 67 18 64 35 82 41 75 15 101 25 3 10 133 124 142 26 103 20 106 161 42 . 79 Largest 3 | 2 2 2 3 3 3 3 2 1 1 1 1 1 1 1 2 1 1 1 1 1 1 1 . 1 Hottest 148 | 70 130 130 88 84 84 81 78 85 65 113 70 5 43 120 148 88 80 120 120 120 113 88 . 110 Shots Fired 1842 | 6 75 97 52 172 100 128 52 75 15 102 25 3 10 134 125 143 27 103 20 107 158 38 . 75 Gun 612 | 6 67 60 52 169 98 75 13 . . . . . . . . . . . . . . 33 . 39 Cannon 793 | . . . . . . 47 33 47 5 70 8 . . 62 77 118 20 80 17 70 111 . . 28 Launcher 118 | . 2 . . 3 2 6 4 13 . 9 7 . 5 18 15 5 1 12 . 12 4 . . . Special 319 | . 6 37 . . . . 2 15 10 23 10 3 5 54 33 20 6 11 3 25 43 5 . 8 Kinetic 632 | 3 20 . 52 169 98 92 46 32 5 47 8 . . 39 17 . . . . . . . . 4 Thermal 741 | 3 53 97 . . . 30 . 15 . 23 . . . 69 34 114 20 75 7 42 87 33 . 39 Explosive 68 | . 2 . . 3 2 6 . 4 . 2 . . . 9 10 5 1 11 . 9 4 . . . Electromagnetic 171 | . . . . . . . 4 9 . 7 7 . 5 9 31 4 . 6 10 31 24 . . 24 Robot Hit Streak 34 | 4 17 23 10 15 30 34 26 14 5 17 10 6 11 29 13 23 7 13 14 16 22 16 . 26 Robot Miss Streak 6 | . 6 3 3 5 2 2 1 2 1 4 2 . 1 3 4 6 2 3 2 2 3 1 . 4 Penetration Max 1 | . . . . 1 1 . 1 . 1 . . . . . 1 . . . . . . . . . Secondary Targets 9 | . . 2 . 4 2 1 . . . . . . . . . . . . . . . . . . Max Gunslinging Chain 1 | . . 1 . 1 1 1 . . . . . . . . . . . . . . . . . . Capacitor 441 | . . . . . . . . . . . . . . . 31 118 20 80 17 70 105 . . . Shots Hit Robots 1259 | 4 45 55 31 115 78 86 40 33 11 66 15 3 6 72 93 121 12 56 17 79 127 34 . 60 Core Hits 740 | 3 39 77 13 62 40 50 49 18 2 29 9 . 7 49 58 52 6 42 9 58 36 10 . 22 Critical Kills 17 | . . . . . 1 . . . . . . . . . 3 5 . 7 . 1 . . . . Critical Parts Destroyed 3 | . . . . 2 1 . . . . . . . . . . . . . . . . . . . Critical Strikes 48 | . 1 . . 2 3 . 4 1 1 7 1 . . 4 5 7 . 7 . 2 . . . 3 Burn 1 | . 1 . . . . . . . . . . . . . . . . . . . . . . . Meltdown 16 | . . . . . . . . . . . . . . . 3 5 . 7 . 1 . . . . Destroy 5 | . . . . 2 3 . . . . . . . . . . . . . . . . . . . Blast 19 | . . . . . . . 4 1 1 7 1 . . 3 2 . . . . . . . . . Corrupt 4 | . . . . . . . . . . . . . . . . . . . . 1 . . . 3 Sever 3 | . . . . . . . . . . . . . . 1 . 2 . . . . . . . . Melee Attacks 49 | . . . . . 6 . 6 . . . . . . . . 37 . . . . . . . . Impact 1 | . . . . . 1 . . . . . . . . . . . . . . . . . . . Slashing 37 | . . . . . . . . . . . . . . . . 37 . . . . . . . . Piercing 2 | . . . . . . . 2 . . . . . . . . . . . . . . . . . Sneak Attacks 9 | . . . . . 5 . 4 . . . . . . . . . . . . . . . . . Combat Hostiles 1 | . . . . . . . 1 . . . . . . . . . . . . . . . . . Follow-up Attacks . | . . . . . . . . . . . . . . . . . . . . . . . . . Damage Inflicted 53870 | 44 683 1001 635 2760 1823 3292 2239 2105 277 4144 915 . 483 4567 5336 5535 742 3738 628 5090 4978 857 . 1998 Guns 9190 | 44 515 977 635 2353 1458 914 230 . . . . . . . . . . . . . . 822 . 1242 Cannons 26496 | . . . . . . 1312 944 986 277 3607 634 . . 2300 2934 3159 373 2336 628 2412 3847 . . 747 Explosions 16352 | . 168 . . 407 365 1066 1059 1119 . 537 281 . 483 1769 2402 1117 369 1402 . 2678 1130 . . . Melee 1265 | . . . . . . . 6 . . . . . . . . 1259 . . . . . . . . Ramming 45 | . . . . . . . . . . . . . . . . . . . . . 1 35 . 9 Kinetic 15630 | 6 101 . 635 2353 1458 1511 1174 986 277 3294 634 . . 2300 857 . . . . . . . . 44 Thermal 17333 | 38 414 1001 . . . 715 . . . 470 . . . 498 1472 3029 373 2207 351 1601 3100 822 . 1242 Explosive 12822 | . 168 . . 407 365 1066 . 788 . 134 . . . 1579 1881 1117 369 1382 . 2436 1130 . . . Electromagnetic 6775 | . . . . . . . 1059 331 . 246 281 . 483 190 1126 130 . 149 277 1053 747 . . 703 Impact . | . . . . . . . . . . . . . . . . . . . . . . . . . Slashing 1259 | . . . . . . . . . . . . . . . . 1259 . . . . . . . . Piercing 6 | . . . . . . . 6 . . . . . . . . . . . . . . . . . Highest Corruption 61 | . . . . . . 8 . . . 2 2 13 13 13 7 5 5 2 1 3 49 61 61 36 Average Corruption 9 | . . . . . . 4 . . . 1 1 7 13 13 5 4 2 1 1 2 32 57 61 24 Corruption Purged 29 | . . . . . . . . . . . . . . . 7 . 5 . . . 17 . . . Corruption Blocked . | . . . . . . . . . . . . . . . . . . . . . . . . . Effects 340 | . . . . . . 16 . . . 11 4 6 9 68 33 31 2 20 1 25 35 32 9 38 Message Errors 76 | . . . . . . 1 . . . 3 1 2 3 22 6 8 1 2 . 8 9 4 2 4 Matter Fused 80 | . . . . . . 3 . . . 3 2 1 3 21 9 7 . 5 1 4 6 6 4 5 Heat Flow Errors 36 | . . . . . . 5 . . . 1 . 2 2 2 5 4 . 4 . . 3 6 . 2 Energy Discharges 36 | . . . . . . . . . . . 1 1 1 10 6 2 . 4 . 3 2 3 1 2 Parts Rejected 3 | . . . . . . . . . . . . . . . . . . . . . . . . 3 Parts Fused 4 | . . . . . . 1 . . . . . . . 1 . 1 . 1 . . . . . . Data Loss (minor) 40 | . . . . . . 2 . . . 3 . . . 8 4 5 . 2 . 5 3 3 1 4 Data Loss (major) 19 | . . . . . . 3 . . . . . . . 2 2 3 . 2 . 2 . 1 1 3 Misfires 6 | . . . . . . . . . . 1 . . . 1 . 1 1 . . 1 1 . . . Alerts 6 | . . . . . . . . . . . . . . 1 . . . . . 2 1 . . 2 Misdirections 20 | . . . . . . . . . . . . . . . . . . . . . 6 5 . 9 Weapon Failures 14 | . . . . . . 1 . . . . . . . . 1 . . . . . 4 4 . 4 Overload Shots . | . . . . . . . . . . . . . . . . . . . . . . . . . Overflow Damage 2531 | . 5 . . 24 . 102 101 161 46 327 96 . 8 510 335 145 99 133 6 258 175 . . . Projectiles 1933 | . . . . . . 56 101 122 46 327 96 . . 369 269 116 39 100 6 113 173 . . . Explosions 569 | . 5 . . 24 . 46 . 39 . . . . 8 141 66 . 60 33 . 145 2 . . . Melee 29 | . . . . . . . . . . . . . . . . 29 . . . . . . . . Knockbacks 27 | . . . . . . 2 3 1 . 9 1 . . 8 3 . . . . . . . . . Impact . | . . . . . . . . . . . . . . . . . . . . . . . . . Kinetic 26 | . . . . . . 2 3 1 . 9 1 . . 7 3 . . . . . . . . . Secondary 1 | . . . . . . . . . . . . . . 1 . . . . . . . . . . Self-Inflicted Damage 282 | . . . . 42 . 119 . . . . . . . 23 . 29 . . . 61 . 7 . 1 Shots 8 | . . . . 2 . 3 . . . . . . . 1 . 1 . . . 1 . . . . Rammed 28 | . . . . . . . . . . . . . . . . . . . . . 2 22 . 4 Targets Rammed 29 | . . . . . . . . . . . . . . . . . . . . . 2 23 . 4 Kicked . | . . . . . . . . . . . . . . . . . . . . . . . . . Crushed 1 | . . . . . . . . . . . . . . . . . . . . . . 1 . . Highest Temperature 372 | 40 207 . 48 204 166 214 21 48 24 252 70 143 214 288 342 304 35 202 132 372 213 269 . 228 Average Temperature 71 | 19 58 . 16 61 47 79 3 11 10 78 16 71 96 82 91 49 32 64 42 125 80 117 . 51 Received Heat Transfer 2329 | . 195 138 99 342 207 189 174 . 12 77 6 . 4 29 62 60 . 52 9 109 255 82 18 210 Effects 11 | . . . . . . . . . . 4 . . . 1 1 . . . . 5 . . . . Energy Bleed 5 | . . . . . . . . . . 1 . . . 1 1 . . . . 2 . . . . Interference 6 | . . . . . . . . . . 3 . . . . . . . . . 3 . . . . Siege Activations 11 | . . . . . . . . . . . . . . . . . . . . . 2 1 . 8 Total Turns 169 | . . . . . . . . . . . . . . . . . . . . . 61 8 . 100 Longest Duration 39 | . . . . . . . . . . . . . . . . . . . . . 39 8 . 33 Martial Activations . | . . . . . . . . . . . . . . . . . . . . . . . . . Shielding Activations . | . . . . . . . . . . . . . . . . . . . . . . . . . Robots Disrupted 1 | . . . . . . . . . . . . . . . . . . . . . . . . 1 Combat Hostiles 1 | . . . . . . . . . . . . . . . . . . . . . . . . 1 Robots Corrupted 23 | . . . . . . . 1 . . . . . 2 1 5 1 . . 2 5 4 . . 2 Combat Hostiles 21 | . . . . . . . . . . . . . 2 1 4 1 . . 2 5 4 . . 2 Parts Fried 38 | . . . . . . . 5 . . 2 . . 1 3 9 . . . 3 8 3 . . 4 Impact Corruptions 1 | . . . . . . . . . . . . . . 1 . . . . . . . . . . Robots Melted 17 | . . . . . . 1 . . . . . . . . 3 5 . 7 . 1 . . . . Combat Hostiles 14 | . . . . . . . . . . . . . . . 3 5 . 6 . . . . . . Parts Melted 46 | . 2 2 . . . 1 . . . . . . . . 6 8 . 18 . 4 2 . . 3 Heat Transferred 11451 | 111 890 1275 . . . 1400 . . . 428 . . . 1665 137 . . 55 259 1236 1590 1110 . 1295 Parts Sabotaged . | . . . . . . . . . . . . . . . . . . . . . . . . . Parts Stolen . | . . . . . . . . . . . . . . . . . . . . . . . . . Parts Stripped . | . . . . . . . . . . . . . . . . . . . . . . . . . Power Chain Reactions 7 | . . . . . . . 2 . . 2 1 . . . 2 . . . . . . . . . Alert | -11 -10 -10 -8 -8 -8 -8 -7 -7 -6 -6 -5 -5 -5 -5 -4 -4 -4 -4 -3 -3 -2 -2 -2 -1 ------- Run | Yrd Mat Sub Mat Gar Mat Gar Fac Gar Fac Gar Fac Was Fac Gar Fac Gar Fac Gar Res Gar Res Gar Res Acc Maximum Alert Level 5 | . . . . 3 2 4 2 3 2 4 2 . . 4 2 4 3 4 3 5 3 2 1 . Low Security (%) 21 | 100 100 . 100 25 . . 68 . . 2 . 100 100 2 . . . . . . . . . 100 Level 1 14 | . . . . 15 34 14 20 29 74 18 . . . 12 20 6 19 14 . . . . 100 . Level 2 26 | . . . . 16 65 23 11 19 25 38 99 . . 28 79 17 10 11 9 22 . 100 . . Level 3 25 | . . . . 42 . 51 . 51 . 27 . . . 31 . 29 69 45 90 5 100 . . . Level 4 11 | . . . . . . 9 . . . 12 . . . 25 . 45 . 28 . 57 . . . . Level 5 . | . . . . . . . . . . . . . . . . . . . . 13 . . . . High Security . | . . . . . . . . . . . . . . . . . . . . . . . . . Max Security . | . . . . . . . . . . . . . . . . . . . . . . . . . Peak Influence 1645 | 5 100 . 81 1032 515 1114 584 938 496 1172 615 67 69 1242 695 1516 795 1315 853 1645 1045 643 311 162 Initial 924 | . . . . . 503 265 584 203 492 179 615 67 . . 651 295 795 263 739 516 924 594 311 162 Average 573 | . 23 . 11 519 407 771 168 596 331 676 510 32 20 742 487 1014 655 869 755 1201 883 605 288 48 Influence Increases 13975 | 10 311 30 206 1062 610 909 482 805 135 1173 234 . 69 1262 1087 1241 158 1102 275 1299 884 90 60 481 Destroy 0b10 Robot/C 6710 | . 180 20 100 700 400 540 105 345 75 465 135 . 45 570 570 555 45 555 150 615 330 60 . 150 Destroy 0b10 Robot/NC 396 | 10 25 . 25 . 30 10 60 . 4 4 16 . 4 8 60 28 24 4 12 12 40 8 . 12 Destroy Leader 864 | . 44 10 34 20 102 40 32 24 24 24 34 . 8 32 112 64 20 32 40 56 78 . . 34 Allied During Kill 973 | . . . . . 1 . . 56 14 141 34 . . 94 75 68 16 74 59 253 77 8 . 3 Successful Hack 257 | . 12 . 12 42 5 14 40 11 4 17 11 . . 11 20 17 3 6 . . . 14 . 18 Disable Machine 615 | . . . . . 15 . 228 36 . 12 . . 12 36 72 96 . 48 12 24 12 . . 12 Anti-Garrison Action 2090 | . . . . 250 . 100 . 227 . 416 . . . 265 . 227 . 265 . 227 113 . . . Destroy Structure 1257 | . 5 . 5 5 27 70 17 106 2 82 4 . . 186 178 174 38 118 2 100 138 . . . Partial Spotted 75 | . . . . . 15 . . . . . . . . . . . . . . . 24 . 24 12 Lose Combat Pursuer 738 | . 45 . 30 45 15 135 . . 12 12 . . . 60 . 12 12 . . 12 72 . 36 240 Influence Decreases 13927 | 10 311 30 206 30 1233 204 1305 158 816 258 1212 194 69 20 1907 147 1298 163 902 342 1737 328 343 704 Entered New Map 6070 | . . . . . 529 144 530 88 446 78 557 127 . . 591 127 721 113 576 172 721 198 243 109 Time Decay 4152 | 10 311 30 206 . 334 . 490 . 310 . 380 40 69 . 601 . 262 . 246 . 416 . 80 367 Lost Part 700 | . . . . 30 . 60 10 10 . . . . . . 50 . . 10 . 30 290 90 . 120 Lost Ally 1355 | . . . . . 70 . . 60 60 180 . 27 . 20 140 20 40 40 80 140 310 40 20 108 Purge Threat 1650 | . . . . . 300 . 275 . . . 275 . . . 525 . 275 . . . . . . . Squads Dispatched 45 | . 1 . . . 3 . 4 . 2 . 5 . . . 10 . 2 . 1 . 12 . 2 3 Investigation . | . . . . . . . . . . . . . . . . . . . . . . . . . Extermination 17 | . . . . . . . 3 . 1 . 2 . . . 4 . 1 . 1 . 2 . 1 2 Reinforcement 16 | . 1 . . . . . 1 . . . 2 . . . 4 . 1 . . . 5 . 1 1 Assault 7 | . . . . . . . . . . . 1 . . . 1 . . . . . 5 . . . Garrison 5 | . . . . . 3 . . . 1 . . . . . 1 . . . . . . . . . Intercept . | . . . . . . . . . . . . . . . . . . . . . . . . . Searches Triggered . | . . . . . . . . . . . . . . . . . . . . . . . . . Unchained Authorized 2 | . . . . . . . . . . . . . . . . . . . 1 . 1 . . . Construction Impeded 5 | . . . . . . . 1 . . . 1 . . . 2 . 1 . . . . . . . Haulers Reinforced 2 | . . . . . . . . . . . . . . . 1 . . . . . 1 . . . Active Scanning Responses . | . . . . . . . . . . . . . . . . . . . . . . . . . Cargo Convoy Interrupts 1 | . . . . . . . . . . . . . . . 1 . . . . . . . . . Stealth | -11 -10 -10 -8 -8 -8 -8 -7 -7 -6 -6 -5 -5 -5 -5 -4 -4 -4 -4 -3 -3 -2 -2 -2 -1 --------- Run | Yrd Mat Sub Mat Gar Mat Gar Fac Gar Fac Gar Fac Was Fac Gar Fac Gar Fac Gar Res Gar Res Gar Res Acc Distress Signals 25 | . 2 . 1 1 1 . 1 . 2 . 1 . 1 . 3 . 2 1 . . 7 . . 2 Communications Jammed 298 | . . . . . . . . . . . 10 . 1 . 114 1 53 11 . . 108 . . . Distress Signals 298 | . . . . . . . . . . . 10 . 1 . 114 1 53 11 . . 108 . . . Times Spotted 621 | . 21 14 9 42 27 32 10 29 10 41 17 3 5 37 58 37 7 37 8 45 71 12 3 46 Peak Tracking Total 13 | . 4 2 4 9 5 6 4 4 4 7 6 1 5 13 9 4 2 4 3 9 13 6 3 11 Tactical Retreats 32 | . 3 . 1 3 1 5 . . 1 1 . . . 1 . 1 1 . . 1 3 . 2 8 Traps | -11 -10 -10 -8 -8 -8 -8 -7 -7 -6 -6 -5 -5 -5 -5 -4 -4 -4 -4 -3 -3 -2 -2 -2 -1 ------- Run | Yrd Mat Sub Mat Gar Mat Gar Fac Gar Fac Gar Fac Was Fac Gar Fac Gar Fac Gar Res Gar Res Gar Res Acc Traps Triggered 95 | . . 3 . 5 . 9 1 9 . 15 9 . . 11 1 10 . 9 . 7 2 3 . 1 Indirectly 14 | . . . . . . . 1 1 . 3 8 . . . . . . 1 . . . . . . Trap Hack Attempts . | . . . . . . . . . . . . . . . . . . . . . . . . . Triggered . | . . . . . . . . . . . . . . . . . . . . . . . . . Disarmed . | . . . . . . . . . . . . . . . . . . . . . . . . . Reprogrammed . | . . . . . . . . . . . . . . . . . . . . . . . . . Reused . | . . . . . . . . . . . . . . . . . . . . . . . . . Traps Extracted . | . . . . . . . . . . . . . . . . . . . . . . . . . Installed . | . . . . . . . . . . . . . . . . . . . . . . . . . Triggered . | . . . . . . . . . . . . . . . . . . . . . . . . . Most Traps Carried 1 | . . 1 1 . . . . . . . . . . . . . . . . . . . . . Machines | -11 -10 -10 -8 -8 -8 -8 -7 -7 -6 -6 -5 -5 -5 -5 -4 -4 -4 -4 -3 -3 -2 -2 -2 -1 ---------- Run | Yrd Mat Sub Mat Gar Mat Gar Fac Gar Fac Gar Fac Was Fac Gar Fac Gar Fac Gar Res Gar Res Gar Res Acc Machines Disabled 90 | . . 1 . 3 1 2 19 7 . 10 . . 1 8 6 12 . 10 1 6 2 . . 1 Max in Single Turn 10 | . . 1 . 1 1 1 10 1 . 3 . . 1 1 1 1 . 1 1 1 . . . 1 Garrison Access 3 | . . . . . . . 1 . . . . . . . . . . . . . 1 . . 1 Garrison Relay 35 | . . . . 3 . 2 . 4 . 7 . . . 5 . 4 . 5 . 4 . 1 . . Phase Generator 1 | . . . . 1 . . . . . . . . . . . . . . . . . . . . Machines Repaired . | . . . . . . . . . . . . . . . . . . . . . . . . . Machines Dismantled . | . . . . . . . . . . . . . . . . . . . . . . . . . Machines Sabotaged . | . . . . . . . . . . . . . . . . . . . . . . . . . Overloaded Fab Kills . | . . . . . . . . . . . . . . . . . . . . . . . . . Hacking | -11 -10 -10 -8 -8 -8 -8 -7 -7 -6 -6 -5 -5 -5 -5 -4 -4 -4 -4 -3 -3 -2 -2 -2 -1 --------- Run | Yrd Mat Sub Mat Gar Mat Gar Fac Gar Fac Gar Fac Was Fac Gar Fac Gar Fac Gar Res Gar Res Gar Res Acc Machines Accessed 90 | . 6 2 6 3 6 3 11 3 4 2 6 . 1 1 10 2 5 2 3 2 5 2 . 5 Terminals 59 | . 6 . 5 3 5 3 6 3 1 2 4 . . 1 6 2 2 2 . 2 . 2 . 4 Fabricators 5 | . . . . . . . 1 . . . 1 . . . 1 . . . . . 2 . . . Repair Stations . | . . . . . . . . . . . . . . . . . . . . . . . . . Recycling Units 9 | . . . . . . . 1 . 1 . . . . . 2 . 2 . 1 . 2 . . . Scanalyzers 4 | . . . . . . . 1 . 1 . 1 . . . . . . . 1 . . . . . Garrison Access 11 | . . . 1 . 1 . 2 . 1 . . . 1 . 1 . 1 . 1 . 1 . . 1 Total Hacks 149 | . 11 5 8 4 12 3 20 4 8 4 10 . 1 1 22 2 8 2 5 4 7 3 . 5 Successful 62 | . 6 5 6 3 4 1 7 2 2 2 2 . 1 1 7 2 3 1 2 1 1 1 . 2 Failed 87 | . 5 . 2 1 8 2 13 2 6 2 8 . . . 15 . 5 1 3 3 6 2 . 3 Catastrophic 20 | . 1 . . . . 2 4 1 . 1 3 . . . 3 . 2 . . . . . . 3 Database Lockouts . | . . . . . . . . . . . . . . . . . . . . . . . . . Manual 34 | . 10 . 7 . 2 . 4 . . . 2 . . . 6 . . . . . 1 . . 2 Terminals 98 | . 11 . 7 4 11 3 11 4 2 4 7 . . 1 13 2 5 2 . 4 . 3 . 4 Fabricators 9 | . . . . . . . 2 . . . 1 . . . 3 . . . . . 3 . . . Repair Stations . | . . . . . . . . . . . . . . . . . . . . . . . . . Recycling Units 18 | . . . . . . . 3 . 3 . . . . . 5 . 2 . 2 . 3 . . . Scanalyzers 8 | . . . . . . . 2 . 2 . 2 . . . . . . . 2 . . . . . Garrison Access 11 | . . . 1 . 1 . 2 . 1 . . . 1 . 1 . 1 . 1 . 1 . . 1 Terminal Hacks 31 | . 1 5 . 3 2 1 1 2 1 2 1 . . 1 4 2 1 1 . 1 . 1 . 1 Record 4 | . . 4 . . . . . . . . . . . . . . . . . . . . . . Open Door 4 | . . . . . . . . . . 1 . . . . . 1 . 1 . 1 . . . . Branch Access Points 1 | . . . . . . . . . . . . . . . 1 . . . . . . . . . Emergency Access Points 6 | . . . . 1 . 1 . 1 . 1 . . . 1 . 1 . . . . . . . . Unreport Threat 3 | . . . . . 2 . . . . . . . . . 1 . . . . . . . . . Locate Traps 3 | . 1 . . . . . . . . . . . . . 1 . 1 . . . . . . . Maintenance Status 1 | . . . . . . . . . . . . . . . 1 . . . . . . . . . Registered Components 1 | . . . . . . . 1 . . . . . . . . . . . . . . . . . Zone Layout 3 | . . . . . . . . . 1 . 1 . . . . . . . . . . . . 1 Garrison Registry 1 | . . . . 1 . . . . . . . . . . . . . . . . . . . . Patrol Navigation 3 | . . . . 1 . . . 1 . . . . . . . . . . . . . 1 . . Proto ID Catalog 1 | . . 1 . . . . . . . . . . . . . . . . . . . . . . Fabricator Hacks 1 | . . . . . . . . . . . 1 . . . . . . . . . . . . . Network Status 1 | . . . . . . . . . . . 1 . . . . . . . . . . . . . Repair Station Hacks . | . . . . . . . . . . . . . . . . . . . . . . . . . Recycling Unit Hacks 2 | . . . . . . . . . . . . . . . 1 . 1 . . . . . . . Retrieve Components 2 | . . . . . . . . . . . . . . . 1 . 1 . . . . . . . Scanalyzer 3 | . . . . . . . 2 . . . . . . . . . . . 1 . . . . . Retrieve Study 3 | . . . . . . . 2 . . . . . . . . . . . 1 . . . . . Garrison Access Hacks 11 | . . . 1 . 1 . 2 . 1 . . . 1 . 1 . 1 . 1 . 1 . . 1 Unlock Access 9 | . . . 1 . 1 . 1 . 1 . . . 1 . 1 . 1 . 1 . 1 . . . Seal Access 2 | . . . . . . . 1 . . . . . . . . . . . . . . . . 1 Unauthorized Hacks 14 | . 5 . 5 . 1 . 2 . . . . . . . 1 . . . . . . . . . Terminals 13 | . 5 . 5 . 1 . 2 . . . . . . . . . . . . . . . . . Botnet 2 | . . . . . 1 . 1 . . . . . . . . . . . . . . . . . Operators 1 | . . . . . . . 1 . . . . . . . . . . . . . . . . . Skim 10 | . 5 . 5 . . . . . . . . . . . . . . . . . . . . . Fabricators 1 | . . . . . . . . . . . . . . . 1 . . . . . . . . . Haulers 1 | . . . . . . . . . . . . . . . 1 . . . . . . . . . Repair Stations . | . . . . . . . . . . . . . . . . . . . . . . . . . Recycling Units . | . . . . . . . . . . . . . . . . . . . . . . . . . Scanalyzers . | . . . . . . . . . . . . . . . . . . . . . . . . . Garrison Access . | . . . . . . . . . . . . . . . . . . . . . . . . . Data Cores Recovered 4 | . 1 . 1 . 1 . . . . . . . . . 1 . . . . . . . . . Used 1 | . 1 . . . . . . . . . . . . . . . . . . . . . . . Hacking Detections 72 | . 5 . 2 3 5 2 9 2 4 2 5 . 1 1 10 . 4 2 3 1 5 2 . 4 Full Trace Events 1 | . . . . . 1 . . . . . . . . . . . . . . . . . . . Feedback Events . | . . . . . . . . . . . . . . . . . . . . . . . . . Feedback Blocked . | . . . . . . . . . . . . . . . . . . . . . . . . . Robot Schematics Acquired . | . . . . . . . . . . . . . . . . . . . . . . . . . Robots Built . | . . . . . . . . . . . . . . . . . . . . . . . . . Authchips . | . . . . . . . . . . . . . . . . . . . . . . . . . Time . | . . . . . . . . . . . . . . . . . . . . . . . . . Total Robot Build Rating . | . . . . . . . . . . . . . . . . . . . . . . . . . Part Schematics Acquired . | . . . . . . . . . . . . . . . . . . . . . . . . . Parts Built . | . . . . . . . . . . . . . . . . . . . . . . . . . Authchips . | . . . . . . . . . . . . . . . . . . . . . . . . . Time . | . . . . . . . . . . . . . . . . . . . . . . . . . Total Part Build Rating . | . . . . . . . . . . . . . . . . . . . . . . . . . Part Studies Acquired 3 | . . . . . . . 2 . . . . . . . . . . . 1 . . . . . Parts Repaired . | . . . . . . . . . . . . . . . . . . . . . . . . . Time . | . . . . . . . . . . . . . . . . . . . . . . . . . Parts Recycled . | . . . . . . . . . . . . . . . . . . . . . . . . . Recycled Matter . | . . . . . . . . . . . . . . . . . . . . . . . . . Retrieved Matter . | . . . . . . . . . . . . . . . . . . . . . . . . . Retrieved Components 4 | . . . . . . . . . . . . . . . 3 . 1 . . . . . . . Parts Scanalyzed . | . . . . . . . . . . . . . . . . . . . . . . . . . Part Schematics Acquired . | . . . . . . . . . . . . . . . . . . . . . . . . . Parts Damaged . | . . . . . . . . . . . . . . . . . . . . . . . . . Bothacking | -11 -10 -10 -8 -8 -8 -8 -7 -7 -6 -6 -5 -5 -5 -5 -4 -4 -4 -4 -3 -3 -2 -2 -2 -1 ------------ Run | Yrd Mat Sub Mat Gar Mat Gar Fac Gar Fac Gar Fac Was Fac Gar Fac Gar Fac Gar Res Gar Res Gar Res Acc Used RIF Installer 11 | . . . . 1 . 2 . 1 . 1 . . . 1 . 1 . 2 . 1 . 1 . . Code Merge 1 | . . . . . . . . 1 . . . . . . . . . . . . . . . . Command Fork 1 | . . . . . . . . . . . . . . 1 . . . . . . . . . . Threat Obfuscator 1 | . . . . . . 1 . . . . . . . . . . . . . . . . . . Signal Jammer 1 | . . . . . . . . . . . . . . . . . . 1 . . . . . . Zone Cloak 1 | . . . . . . 1 . . . . . . . . . . . . . . . . . . Robot Detection 1 | . . . . . . . . . . 1 . . . . . . . . . . . . . . Structural Interface 1 | . . . . . . . . . . . . . . . . 1 . . . . . . . . Program Shield 1 | . . . . . . . . . . . . . . . . . . . . 1 . . . . Autoassimilate 1 | . . . . . . . . . . . . . . . . . . 1 . . . . . . Crosswire 1 | . . . . . . . . . . . . . . . . . . . . . . 1 . . Robots Hacked 133 | . . . . . 3 . 4 9 8 15 6 3 4 3 15 2 4 9 4 6 26 1 1 10 Non-combat 44 | . . . . . 3 . 4 . 3 1 5 . 2 . 9 . 4 . . . 13 . . . Combat 89 | . . . . . . . . 9 5 14 1 3 2 3 6 2 . 9 4 6 13 1 1 10 Autoassimilated 17 | . . . . . . . . . . . . . . . . . . 2 1 2 2 . 1 9 Robot Hacks Applied 136 | . . . . . 3 . 6 9 8 17 8 3 4 3 19 3 6 7 3 8 27 1 . 1 parse_system 6 | . . . . . . . . . . 2 . . . . 1 . 1 . . . 1 . . 1 no_distress 3 | . . . . . . . . . . . . . . . 1 . . . . . 2 . . . generate_anomaly 1 | . . . . . . . . . . . . . . . . . . . . . 1 . . . map_walls 4 | . . . . . . . 1 . . . . . . . . . 1 . . . 2 . . . randomize_corridors 1 | . . . . . . . . . . . . . . . . . . . . . 1 . . . map_earth 1 | . . . . . . . . . . . . . . . . . . . . . 1 . . . drop_inventory 16 | . . . . . 2 . 1 . 2 . 3 . 2 . 2 . 1 . . . 3 . . . find_recycling 1 | . . . . . . . . . 1 . . . . . . . . . . . . . . . ignore_parts 1 | . . . . . . . . . . . . . . . . . . . . . 1 . . . purge_threat 9 | . . . . . . . 2 . . . 2 . . . 3 . 2 . . . . . . . reprogram_traps 1 | . . . . . . . 1 . . . . . . . . . . . . . . . . . block_reporting 3 | . . . . . . . . . . . 1 . . . 1 . 1 . . . . . . . map_route 2 | . . . . . . . . . . . . . . . 1 . . . . . 1 . . . disable_shields 1 | . . . . . . . . . . . 1 . . . . . . . . . . . . . redirect_shields 2 | . . . . . . . . . . . . . . . 2 . . . . . . . . . ignore_targets 3 | . . . . . . . . . . . . 3 . . . . . . . . . . . . emergency_deploy 1 | . . . . . . . . . . . . . . . . . . . . . 1 . . . link_complan 1 | . . . . . . . . . . . . . . . . 1 . . . . . . . . overload_power 3 | . . . . . . . . . . 3 . . . . . . . . . . . . . . amplify_resonance 5 | . . . . . . . . . . 2 1 . . . 1 . . . . . 1 . . . wipe_record 2 | . . . . . . . . . . . . . . . . . . . . 2 . . . . reboot_system 7 | . . . . . . . . . 2 1 . . . . 1 . . . 1 2 . . . . overwrite_iff 18 | . . . . . . . . . 1 2 . . 1 2 2 1 . 5 . 1 3 . . . streamctrl_high 3 | . . . . . . . . . . . . . . . . . . . . 1 1 1 . . formatsys_low 6 | . . . . . 1 . 1 . . 1 . . . . 2 . . . . . 1 . . . formatsys_high 35 | . . . . . . . . 9 2 6 . . 1 1 2 1 . 2 2 2 7 . . . Relay Couplers Released 150 | . . . . 13 . 9 . 14 . 28 . . . 20 . 16 . 25 . 17 3 5 . . Machine Destruction 143 | . . . . 13 . 9 . 14 . 28 . . . 20 . 16 . 21 . 17 . 5 . . Programmers 7 | . . . . . . . . . . . . . . . . . . 4 . . 3 . . . Attached 47 | . . . . . 1 . 2 7 . 6 . . . 3 5 2 1 2 . 4 6 7 . 1 Crosswired 8 | . . . . . . . . . . . . . . . . . . . . . . 8 . . Merged Code Value 277 | . . . . . . . . 45 . 29 . . . 22 . 15 . 103 . 40 23 . . . Fabnet Peak Effective % . | . . . . . . . . . . . . . . . . . . . . . . . . . Robots Rewired 17 | . . . . 3 . . . . . 6 . . . . . 2 . . . 5 . . . 1 Allies Hacked 2 | . . . . . . . . . . . . . . . 1 . . . 1 . . . . . Hacks Repelled . | . . . . . . . . . . . . . . . . . . . . . . . . . Allies | -11 -10 -10 -8 -8 -8 -8 -7 -7 -6 -6 -5 -5 -5 -5 -4 -4 -4 -4 -3 -3 -2 -2 -2 -1 -------- Run | Yrd Mat Sub Mat Gar Mat Gar Fac Gar Fac Gar Fac Was Fac Gar Fac Gar Fac Gar Res Gar Res Gar Res Acc Total Allies 108 | . . . . 3 1 . 1 9 3 15 . 1 2 4 8 6 . 11 3 15 13 2 1 10 Largest Group 8 | . . . . 2 3 . 1 4 3 8 4 4 2 4 4 4 4 5 4 7 5 2 1 3 Highest-Rated Group 407 | . . . . 10 15 . 14 92 92 266 116 118 72 150 179 228 228 252 203 407 361 116 58 174 Highest-Rated Ally 148 | . . . . 5 14 . 14 32 32 46 32 32 49 49 142 116 80 116 58 148 148 58 58 69 Total Orders 128 | . . . . . 1 . 1 5 2 35 8 . 1 25 10 . 2 6 4 13 15 . . . STAY 58 | . . . . . . . . 3 1 16 3 . 1 11 4 . 1 3 2 6 7 . . . ROAM 1 | . . . . . . . . . . . . . . . . . . . . . 1 . . . FOLLOW 54 | . . . . . . . . 2 1 15 3 . . 11 4 . 1 3 2 7 5 . . . AID 15 | . . . . . 1 . 1 . . 4 2 . . 3 2 . . . . . 2 . . . Ally Attacks 592 | . . . . . 11 . . 48 22 87 23 21 3 30 66 33 21 23 24 49 116 6 . 9 Total Damage 18318 | . . . . . 69 . . 532 531 2208 815 656 40 829 2363 1764 614 805 645 1973 3870 237 . 367 Kills 100 | . . . . . . . . 6 4 10 6 . . 11 11 10 5 6 4 12 12 2 . 1 Allies Corrupted 9 | . . . . . . . . . . . . . . . 1 . . . 1 . 5 1 . 1 Allies Melted 2 | . . . . . . . . . . . . . . . . . . 1 . . 1 . . . Intel | -11 -10 -10 -8 -8 -8 -8 -7 -7 -6 -6 -5 -5 -5 -5 -4 -4 -4 -4 -3 -3 -2 -2 -2 -1 ------- Run | Yrd Mat Sub Mat Gar Mat Gar Fac Gar Fac Gar Fac Was Fac Gar Fac Gar Fac Gar Res Gar Res Gar Res Acc Active Infowar (turns) 18726 | 29 928 2642 1053 388 469 9 1375 831 686 978 884 128 236 1742 1833 1633 574 1649 533 126 . . . . Structural 1 | . . . . 1 . . . . . . . . . . . . . . . . . . . . Seismic 13327 | 29 928 2642 1053 387 469 9 1373 770 686 270 870 128 236 1717 1716 44 . . . . . . . . Triangulation 1 | . . . . 1 . . . . . . . . . . . . . . . . . . . . Cloaking 2268 | . . . . . . . . . . . . . . . 510 266 271 562 533 126 . . . . Jamming 9688 | . . . . . . . 290 201 . 708 884 128 236 1647 1825 1633 574 1562 . . . . . . Robot Analysis Total . | . . . . . . . . . . . . . . . . . . . . . . . . . Derelict Logs Recovered 1 | . . 1 . . . . . . . . . . . . . . . . . . . . . . Drone Launches . | . . . . . . . . . . . . . . . . . . . . . . . . . Drone Recoveries . | . . . . . . . . . . . . . . . . . . . . . . . . . Exploration | -11 -10 -10 -8 -8 -8 -8 -7 -7 -6 -6 -5 -5 -5 -5 -4 -4 -4 -4 -3 -3 -2 -2 -2 -1 ------------- Run | Yrd Mat Sub Mat Gar Mat Gar Fac Gar Fac Gar Fac Was Fac Gar Fac Gar Fac Gar Res Gar Res Gar Res Acc Turns Passed 27337 | 97 1073 3004 1206 1213 754 1068 1470 1523 687 1910 884 128 236 1742 1930 1635 574 1665 533 1394 1004 403 166 1038 Spaces Moved 15475 | 45 509 1892 528 589 370 482 981 936 457 1000 517 85 145 837 1013 795 342 944 314 742 598 278 303 773 Core 1135 | 2 . . . . . . . . . . . . . . . . . . . . 151 205 303 474 Treads 971 | 43 509 103 . . . . . . . . . . . . . . . . . . 1 16 . 299 Legs . | . . . . . . . . . . . . . . . . . . . . . . . . . Wheels 13369 | . . 1789 528 589 370 482 981 936 457 1000 517 85 145 837 1013 795 342 944 314 742 446 57 . . Hover . | . . . . . . . . . . . . . . . . . . . . . . . . . Flight . | . . . . . . . . . . . . . . . . . . . . . . . . . Fastest Speed 50 | 50 160 105 101 150 150 140 115 115 130 130 145 145 145 130 124 141 141 141 136 136 50 50 50 50 Average Speed 133 | 155 160 132 135 150 150 149 118 122 130 136 145 145 145 144 147 155 141 141 150 143 112 69 50 92 Slowest Speed 250 | 160 160 160 150 150 150 155 150 130 130 145 145 145 145 145 158 158 141 141 153 153 160 160 50 250 Overloaded Moves . | . . . . . . . . . . . . . . . . . . . . . . . . . Propulsion Burnouts . | . . . . . . . . . . . . . . . . . . . . . . . . . Robots Hopped . | . . . . . . . . . . . . . . . . . . . . . . . . . Potential Cave-ins . | . . . . . . . . . . . . . . . . . . . . . . . . . Cave-ins Triggered . | . . . . . . . . . . . . . . . . . . . . . . . . . Exploration Rate (%) 49 | 4 85 93 42 76 41 66 32 95 14 87 20 80 6 85 26 88 15 93 10 83 23 37 9 24 Regions Visited 24 Branch Regions 1 Pre-discovered Areas 1 | . . 1 . . . . . . . . . . . . . . . . . . . . . . Known Exits Taken 10 | . . 1 1 . 1 . 1 . 1 . . . 1 . 1 . 1 . 1 . 1 . . . Unknown Exits Taken 3 | 1 1 . . . . . . . . . . . . . . . . . . . . . 1 . Scrap Searched 4 | . . 4 . . . . . . . . . . . . . . . . . . . . . . Spaces Dug 60 | . 4 . . 7 1 12 16 1 . . . . . . 2 2 10 1 . 2 2 . . . Terrain Destroyed 505 | . 6 . 3 12 26 45 21 43 2 24 2 . . 74 52 45 18 67 . 47 18 . . . Melee 1 | . . . . . 1 . . . . . . . . . . . . . . . . . . . Projectile 163 | . 5 . 3 5 1 4 21 12 2 10 2 . . 16 12 25 13 17 . 4 11 . . . AOE 341 | . 1 . . 7 24 41 . 31 . 14 . . . 58 40 20 5 50 . 43 7 . . . Terrain Rammed 1 | . . . . . . . . . . . . . . . . . . . . . . 1 . . Walls Destroyed . | . . . . . . . . . . . . . . . . . . . . . . . . . Machines Disabled . | . . . . . . . . . . . . . . . . . . . . . . . . . Actions | -11 -10 -10 -8 -8 -8 -8 -7 -7 -6 -6 -5 -5 -5 -5 -4 -4 -4 -4 -3 -3 -2 -2 -2 -1 --------- Run | Yrd Mat Sub Mat Gar Mat Gar Fac Gar Fac Gar Fac Was Fac Gar Fac Gar Fac Gar Res Gar Res Gar Res Acc Total 20692 | 63 687 2196 980 791 491 707 1223 1235 535 1423 623 88 162 1164 1359 1118 432 1268 375 1056 917 437 314 1048 Wait 1972 | 2 87 172 365 34 36 41 119 93 47 154 61 . 3 82 112 56 49 143 31 79 39 32 . 135 Move 15458 | 44 508 1891 527 588 370 481 981 935 457 999 517 84 145 836 1012 794 342 943 314 741 598 277 302 772 Hop . | . . . . . . . . . . . . . . . . . . . . . . . . . Pick Up 288 | 7 19 15 24 15 10 9 22 26 3 16 4 . 1 6 22 15 3 12 3 11 27 7 1 10 Fast Attach 129 | 7 2 . 2 . 1 5 4 6 1 5 . . . 5 12 6 . 1 1 10 21 12 8 20 Attach 124 | . 1 6 6 5 . 6 6 7 1 5 2 . . 2 12 3 2 5 2 8 26 10 . 9 Detach 63 | . 1 . 2 . . 4 4 4 . 3 . . . 3 10 1 2 4 1 6 7 5 . 6 Swap 350 | . 13 35 19 32 22 12 20 21 7 25 11 1 2 29 25 21 6 15 1 21 10 . . 2 Drop 278 | . 13 10 17 13 11 11 20 27 3 15 3 . 1 12 22 21 2 10 2 19 25 8 3 10 Fire 1518 | 3 43 67 18 64 35 82 41 75 15 101 25 3 10 133 124 142 26 103 20 106 161 42 . 79 Melee 49 | . . . . . 6 . 6 . . . . . . . . 37 . . . . . . . . Ram 8 | . . . . . . . . . . . . . . . . . . . . . 2 4 . 2 Kick . | . . . . . . . . . . . . . . . . . . . . . . . . . Crush 23 | . . . . . . . . . . . . . . . . . . . . . . 20 . 3 Escape Stasis 362 | . . . . 16 . 56 . 41 . 56 . . . 56 8 21 . 32 . 55 1 20 . . Rewire 70 | . . . . 24 . . . . 1 44 . . . . . 1 . . . . . . . . Trap . | . . . . . . . . . . . . . . . . . . . . . . . . . Miscellaneous . | . . . . . . . . . . . . . . . . . . . . . . . . . Route ------- -11/Scrapyard -10/Materials (discovered 5 exits: *Mat x3 / *Min / *Sub) -10/Subcaves (discovered 3 exits: *Mat x2 / Rec) -8/Materials (discovered 5 exits: *Fac x3 / [*Sto] / Gar) -8/Garrison (discovered 4 exits: *Fac x3 / *Mat) -8/Materials (discovered 3 exits: *Fac x2 / Gar) -8/Garrison (discovered 2 exits: *Fac x2) -7/Factory (discovered 3 exits: *Low x2 / Gar) -7/Garrison (discovered 3 exits: *Fac x3) -6/Factory (discovered 2 exits: [*Low] / Gar) -6/Garrison (discovered 3 exits: *Fac x3) -5/Factory -5/Waste -5/Factory -5/Garrison (discovered 3 exits: *Fac x3) -4/Factory (discovered 3 exits: Upp x2 / Gar) -4/Garrison (discovered 4 exits: *Res x3 / *Fac) -4/Factory -4/Garrison (discovered 3 exits: *Res x3) -3/Research -3/Garrison (discovered 3 exits: *Res x3) -2/Research -2/Garrison -2/Research -1/Access To Epsilon Eridani History --------- Turn | Location | Event 18 | -11/Scrapyard | Discovered new exit (range 15) 98 | -11/Scrapyard | Entered Materials 314 | -10/Materials | Build established: Mutant 367 | -10/Materials | Discovered new exit (range 11) 511 | -10/Materials | Discovered new exit (range 6) 614 | -10/Materials | Discovered new exit (range 16) 1047 | -10/Materials | Discovered new exit (range 9) 1063 | -10/Materials | Learned Storage emergency access door positions 1082 | -10/Materials | Identified exit to Mines 1082 | -10/Materials | Identified exit to Materials 1091 | -10/Materials | Learned 2 Storage zone layouts 1092 | -10/Materials | Learned location of 2 exits from Subcaves 1093 | -10/Materials | Learned location of 1 exit from Recycling 1100 | -10/Materials | Learned location of 2 exits from Materials 1171 | -10/Materials | Entered Subcaves 1172 | -10/Subcaves | Identified exit to Materials 1173 | -10/Subcaves | Identified exit to Recycling 1504 | -10/Subcaves | Curiously followed by a Cobbler waking with a query about "LVR3C" 1656 | -10/Subcaves | Learned location of Storage (-8) 1668 | -10/Subcaves | Visited Clippyterm 1671 | -10/Subcaves | Learned Factory trap positions 1671 | -10/Subcaves | Learned Factory emergency access door positions 1830 | -10/Subcaves | Shifting Twisted Machinery released Scrap Shield 2256 | -10/Subcaves | Shifting Twisted Machinery released Battle Rifle 3299 | -10/Subcaves | A swath of the cavern ceiling suddenly collapsed 3678 | -10/Subcaves | Core integrity fell below 50% 3689 | -10/Subcaves | A swath of the cavern ceiling suddenly collapsed 3690 | -10/Subcaves | Shifting Twisted Machinery released Sub. Power Source 3705 | -10/Subcaves | Shifting Twisted Machinery released Sub. Laser 3794 | -10/Subcaves | Visited 4L-MR0's lab 3813 | -10/Subcaves | Found Powered Cannon 4175 | -10/Subcaves | Entered Materials 4175 | -8/Materials | Evolved 4 slots: Propulsion x1, Utility x2, Weapon x1 4176 | -8/Materials | Identified exit to Factory 4222 | -8/Materials | Discovered new exit (range 16) 4492 | -8/Materials | Identified exit to Garrison 4790 | -8/Materials | Build established: Gunner 5011 | -8/Materials | Learned Recycling recycling unit intel 5134 | -8/Materials | Learned Factory security intel 5182 | -8/Materials | Learned Factory repair station intel 5219 | -8/Materials | Learned Factory emergency access door positions 5247 | -8/Materials | Learned location of 1 exit from Recycling 5286 | -8/Materials | Learned 12 Factory zone layouts 5381 | -8/Materials | Entered Garrison 5390 | -8/Garrison | Phase Generator disabled 5402 | -8/Garrison | Met a derelict Sapper fleeing the area 5405 | -8/Garrison | Triggered checkpoint 5479 | -8/Garrison | Triggered checkpoint 5535 | -8/Garrison | Garrison Relay disabled 5883 | -8/Garrison | Triggered checkpoint 5886 | -8/Garrison | Triggered checkpoint 5902 | -8/Garrison | Triggered checkpoint 5940 | -8/Garrison | Destroyed 11 combat bots 6015 | -8/Garrison | Garrison Relay disabled 6060 | -8/Garrison | Installed Relay Interface Framework 6135 | -8/Garrison | Garrison Relay disabled 6178 | -8/Garrison | Discovered exit to Factory (range 5) 6352 | -8/Garrison | Build established: Bothacker-Gunner 6365 | -8/Garrison | Discovered exit to Factory (range 10) 6425 | -8/Garrison | Discovered exit to Factory (range 46) 6425 | -8/Garrison | Discovered exit to Factory (range 24) 6425 | -8/Garrison | Discovered exit to Factory (range 69) 6425 | -8/Garrison | Discovered new exit (range 77) 6535 | -8/Garrison | Triggered checkpoint 6594 | -8/Garrison | Entered Materials 6594 | -8/Materials | Accompanied by 3 allies 6856 | -8/Materials | Discovered exit to Factory (range 9) 7125 | -8/Materials | Garrison activated, responded to threat 7171 | -8/Materials | Discovered exit to Factory (range 16) 7348 | -8/Materials | Identified exit to Garrison 7348 | -8/Materials | Entered Garrison 7450 | -8/Garrison | Expanded RIF knowledge: Zone Cloak 7474 | -8/Garrison | Triggered checkpoint 7476 | -8/Garrison | Triggered checkpoint 7558 | -8/Garrison | Triggered checkpoint 7581 | -8/Garrison | Garrison Relay disabled 7773 | -8/Garrison | Lost 3 parts (2n1u) 7896 | -8/Garrison | Triggered checkpoint 7973 | -8/Garrison | Triggered checkpoint 7974 | -8/Garrison | Core integrity fell below 50% 8124 | -8/Garrison | Garrison Relay disabled 8157 | -8/Garrison | Discovered exit to Factory (range 10) 8345 | -8/Garrison | Discovered exit to Factory (range 10) 8391 | -8/Garrison | Expanded RIF knowledge: Threat Obfuscation 8416 | -8/Garrison | Entered Factory 8416 | -7/Factory | Evolved 2 slots: Utility x2 8417 | -7/Factory | Identified exit to Lower Caves 8418 | -7/Factory | Loaded intel: 99 trap records 8421 | -7/Factory | Loaded intel: 6 repair station locations 8768 | -7/Factory | Discovered exit to Lower Caves (range 5) 9376 | -7/Factory | P-60 Hacker assimilated allied Machinist 4a 9886 | -7/Factory | Identified exit to Garrison 9886 | -7/Factory | Entered Garrison 9917 | -7/Garrison | Triggered checkpoint 9984 | -7/Garrison | Garrison Relay disabled 10076 | -7/Garrison | Triggered checkpoint 10184 | -7/Garrison | Discovered new exit (range 14) 10235 | -7/Garrison | P-60 Hacker assimilated allied Virus 4a 10329 | -7/Garrison | Triggered checkpoint 10440 | -7/Garrison | Triggered checkpoint 10475 | -7/Garrison | Triggered checkpoint 10501 | -7/Garrison | Triggered checkpoint 10552 | -7/Garrison | Triggered checkpoint 10717 | -7/Garrison | Discovered new exit (range 10) 10755 | -7/Garrison | Garrison Relay disabled 10821 | -7/Garrison | Expanded RIF knowledge: Code Merge 10952 | -7/Garrison | Triggered checkpoint 11021 | -7/Garrison | Garrison Relay disabled 11086 | -7/Garrison | Discovered new exit (range 13) 11121 | -7/Garrison | Build established: Botlord-Gunner 11232 | -7/Garrison | Garrison Relay disabled 11409 | -7/Garrison | Entered Factory 11409 | -6/Factory | Accompanied by 3 allies 11409 | -6/Factory | Evolved 2 slots: Power x1, Utility x1 11425 | -6/Factory | Discovered new exit (range 7) 11600 | -6/Factory | Lost 4 allies 12063 | -6/Factory | Garrison activated, responded to threat 12096 | -6/Factory | Identified exit to Garrison 12096 | -6/Factory | Entered Garrison 12096 | -6/Garrison | Accompanied by 2 allies 12139 | -6/Garrison | Triggered checkpoint 12171 | -6/Garrison | Garrison Relay disabled 12274 | -6/Garrison | Triggered checkpoint 12283 | -6/Garrison | Triggered checkpoint 12502 | -6/Garrison | Triggered checkpoint 12516 | -6/Garrison | Lost 3 allies 12551 | -6/Garrison | Discovered new exit (range 15) 12569 | -6/Garrison | Triggered checkpoint 12687 | -6/Garrison | Garrison Relay disabled 12902 | -6/Garrison | Triggered checkpoint 13098 | -6/Garrison | Discovered new exit (range 9) 13284 | -6/Garrison | Garrison Relay disabled 13606 | -6/Garrison | Discovered new exit (range 10) 13642 | -6/Garrison | Triggered checkpoint 13697 | -6/Garrison | Garrison Relay disabled 13819 | -6/Garrison | Spotted B-75 Beast 13837 | -6/Garrison | Allies destroyed B-75 Beast 13867 | -6/Garrison | Lost 4 allies 13878 | -6/Garrison | Expanded RIF knowledge: Robot Detection 14006 | -6/Garrison | Entered Factory 14006 | -5/Factory | Accompanied by 4 allies 14006 | -5/Factory | Evolved 2 slots: Utility x2 14306 | -5/Factory | First assault squad dispatched 14462 | -5/Factory | P-70 Sage assimilated allied K2-6G6(b) 14687 | -5/Factory | Found Mni. Smartbomb Launcher 14698 | -5/Factory | Discovered new exit (range 9) 14890 | -5/Factory | Sucked down chute 14890 | -5/Factory | Entered Waste 14891 | -5/Waste | Met a frightened Derelict 14905 | -5/Waste | 3 allies followed down the chute 14905 | -5/Waste | EMP discharged 14941 | -5/Waste | Spotted C-40 Crusher 14946 | -5/Waste | Spotted C-40 Crusher 14952 | -5/Waste | Spotted C-40 Crusher 14958 | -5/Waste | Spotted C-40 Crusher 14965 | -5/Waste | Spotted C-40 Crusher 14997 | -5/Waste | Discovered new exit (range 13) 15005 | -5/Waste | EMP discharged 15005 | -5/Waste | System corruption reached 10% 15018 | -5/Waste | Entered Factory 15018 | -5/Factory | Accompanied by 1 ally 15206 | -5/Factory | Build established: Botlord-Tank 15254 | -5/Factory | Identified exit to Garrison 15254 | -5/Factory | Entered Garrison 15254 | -5/Garrison | Accompanied by 2 allies 15259 | -5/Garrison | Triggered checkpoint 15358 | -5/Garrison | Expanded RIF knowledge: Command Fork 15449 | -5/Garrison | Triggered checkpoint 15471 | -5/Garrison | Triggered checkpoint 15503 | -5/Garrison | Triggered checkpoint 15512 | -5/Garrison | Triggered checkpoint 15645 | -5/Garrison | Triggered checkpoint 15660 | -5/Garrison | Build established: Botlord-Gunner 15665 | -5/Garrison | Garrison Relay disabled 15740 | -5/Garrison | Discovered new exit (range 12) 15996 | -5/Garrison | Garrison Relay disabled 16002 | -5/Garrison | Triggered checkpoint 16159 | -5/Garrison | Discovered new exit (range 11) 16268 | -5/Garrison | Triggered checkpoint 16327 | -5/Garrison | Garrison Relay disabled 16537 | -5/Garrison | Spotted B-75 Beast 16549 | -5/Garrison | Garrison Relay disabled 16878 | -5/Garrison | Triggered checkpoint 16889 | -5/Garrison | Garrison Relay disabled 16979 | -5/Garrison | Discovered new exit (range 10) 16996 | -5/Garrison | Entered Factory 16996 | -4/Factory | Accompanied by 3 allies 16996 | -4/Factory | Evolved 2 slots: Utility x2 17496 | -4/Factory | Cargo convoy interrupted 17599 | -4/Factory | Spotted Striker 17601 | -4/Factory | Spotted Executioner 17611 | -4/Factory | Allies destroyed Striker 17620 | -4/Factory | Allies destroyed Executioner 17652 | -4/Factory | Lost 5 allies 17732 | -4/Factory | Lost 3 parts (1p1u1w) 17752 | -4/Factory | Found Gui. Micro-nuke Launcher 17763 | -4/Factory | Found Gui. Micro-nuke Launcher 17775 | -4/Factory | Found PL-3XN's Ring of Power 17996 | -4/Factory | First assault squad dispatched 18110 | -4/Factory | Attached Powered Cannon, gained temporary slot: Power 18111 | -4/Factory | Found Quantum Capacitor 18189 | -4/Factory | Identified exit to Upper Caves 18653 | -4/Factory | Found Hvy. Reactive Plating 18805 | -4/Factory | Identified exit to Garrison 18857 | -4/Factory | Garrison activated, responded to threat 18926 | -4/Factory | Entered Garrison 18971 | -4/Garrison | Triggered checkpoint 19040 | -4/Garrison | Garrison Relay disabled 19082 | -4/Garrison | Found Quantum Capacitor 19086 | -4/Garrison | Found Quantum Capacitor 19125 | -4/Garrison | Triggered checkpoint 19161 | -4/Garrison | Discovered new exit (range 6) 19286 | -4/Garrison | Triggered checkpoint 19311 | -4/Garrison | Spotted B-86 Titan 19324 | -4/Garrison | Triggered checkpoint 19325 | -4/Garrison | Triggered checkpoint 19344 | -4/Garrison | Destroyed B-86 Titan 19353 | -4/Garrison | Triggered checkpoint 19499 | -4/Garrison | Found embedded Infiltrators 19552 | -4/Garrison | Triggered checkpoint 19587 | -4/Garrison | Garrison Relay disabled 19683 | -4/Garrison | Found Relay Coupler [Proto] 19688 | -4/Garrison | Found Relay Coupler [Proto] 19834 | -4/Garrison | Discovered new exit (range 14) 19861 | -4/Garrison | Expanded RIF knowledge: Structural Interface 19999 | -4/Garrison | Triggered checkpoint 20025 | -4/Garrison | Garrison Relay disabled 20085 | -4/Garrison | Discovered new exit (range 12) 20333 | -4/Garrison | Discovered new exit (range 7) 20362 | -4/Garrison | Triggered checkpoint 20390 | -4/Garrison | Garrison Relay disabled 20561 | -4/Garrison | Entered Factory 20561 | -4/Factory | Accompanied by 4 allies 20812 | -4/Factory | Lost 3 allies 21135 | -4/Factory | Identified exit to Garrison 21135 | -4/Factory | Entered Garrison 21176 | -4/Garrison | Triggered checkpoint 21205 | -4/Garrison | Garrison Relay disabled 21398 | -4/Garrison | Triggered checkpoint 21516 | -4/Garrison | Spotted B-86 Titan 21522 | -4/Garrison | Triggered checkpoint 21529 | -4/Garrison | Destroyed B-86 Titan 21641 | -4/Garrison | Garrison Relay disabled 21644 | -4/Garrison | Triggered checkpoint 21743 | -4/Garrison | Discovered new exit (range 14) 21767 | -4/Garrison | Garrison Relay disabled 21834 | -4/Garrison | Rescued a captive Derelict 21912 | -4/Garrison | Triggered checkpoint 22004 | -4/Garrison | P-70 Sage assimilated allied 5B-C3J(l) 22014 | -4/Garrison | Found Relay Coupler [Proto] 22037 | -4/Garrison | Discovered new exit (range 14) 22079 | -4/Garrison | Triggered checkpoint 22096 | -4/Garrison | Garrison Relay disabled 22138 | -4/Garrison | Expanded RIF knowledge: Autoassimilate 22469 | -4/Garrison | Triggered checkpoint 22482 | -4/Garrison | Garrison Relay disabled 22545 | -4/Garrison | Discovered new exit (range 14) 22615 | -4/Garrison | Expanded RIF knowledge: Signal Jamming 22760 | -4/Garrison | Found Relay Coupler [Proto] 22800 | -4/Garrison | Entered Research 22800 | -3/Research | Accompanied by 4 allies 22800 | -3/Research | Evolved 2 slots: Power x1, Utility x1 22949 | -3/Research | P-80 Master assimilated allied Sentinel 7a 23013 | -3/Research | Unchained authorized (DW-4LL) 23333 | -3/Research | Identified exit to Garrison 23333 | -3/Research | Entered Garrison 23333 | -3/Garrison | Accompanied by 2 allies 23351 | -3/Garrison | Triggered checkpoint 23398 | -3/Garrison | Garrison Relay disabled 23646 | -3/Garrison | Triggered checkpoint 23654 | -3/Garrison | Spotted B-86 Titan 23659 | -3/Garrison | Triggered checkpoint 23673 | -3/Garrison | Destroyed B-86 Titan 23681 | -3/Garrison | P-80 Master assimilated allied Veteran 8b 23682 | -3/Garrison | P-80 Master assimilated allied P4-UFL(g) 23697 | -3/Garrison | P-80 Master assimilated allied Veteran 8d 23710 | -3/Garrison | Destroyed 14 combat bots 23713 | -3/Garrison | Lost 5 allies 23834 | -3/Garrison | Triggered checkpoint 23872 | -3/Garrison | Found embedded Infiltrators 23904 | -3/Garrison | Garrison Relay disabled 23937 | -3/Garrison | Discovered new exit (range 8) 23963 | -3/Garrison | Expanded RIF knowledge: Program Shield 24055 | -3/Garrison | Triggered checkpoint 24077 | -3/Garrison | Triggered checkpoint 24103 | -3/Garrison | Garrison Relay disabled 24182 | -3/Garrison | Discovered new exit (range 14) 24323 | -3/Garrison | Discovered new exit (range 10) 24367 | -3/Garrison | Triggered checkpoint 24418 | -3/Garrison | Garrison Relay disabled 24617 | -3/Garrison | Rewired B-90 Cyclops 24624 | -3/Garrison | Rewired B-75 Beast 24727 | -3/Garrison | Entered Research 24727 | -2/Research | Accompanied by 4 allies 24727 | -2/Research | Evolved 2 slots: Propulsion x1, Utility x1 24835 | -2/Research | Spotted B-90 Cyclops 24877 | -2/Research | Allies destroyed B-90 Cyclops 24917 | -2/Research | Unchained authorized (DW-4LL) 24920 | -2/Research | Found Quantum Capacitor 24977 | -2/Research | First assault squad dispatched 25085 | -2/Research | Found Quantum Capacitor 25106 | -2/Research | Spotted B-90 Cyclops 25162 | -2/Research | Destroyed B-90 Cyclops 25235 | -2/Research | Lost 3 allies 25262 | -2/Research | DW-4LL burst out of a wall 25279 | -2/Research | System corruption reached 10% 25315 | -2/Research | Lost 3 allies 25326 | -2/Research | Lost 7 parts (5u2w) 25346 | -2/Research | System corruption reached 30% 25367 | -2/Research | Lost 3 allies 25447 | -2/Research | Lost 5 parts (1p1n3u) 25476 | -2/Research | Found Prototype Launcher 25510 | -2/Research | DW-4LL burst out of a wall 25559 | -2/Research | Lost 7 parts (6u1w) 25637 | -2/Research | DW-4LL burst out of a wall 25642 | -2/Research | Released all parts (12) 25656 | -2/Research | Found Adv. Powered Armor 25676 | -2/Research | Lost 8 parts (1p6u1w) 25715 | -2/Research | Spotted B-90 Cyclops 25731 | -2/Research | Identified exit to Garrison 25731 | -2/Research | Entered Garrison 25741 | -2/Garrison | Expanded RIF knowledge: Crosswire 25747 | -2/Garrison | Triggered checkpoint 25833 | -2/Garrison | Core integrity fell below 50% 25838 | -2/Garrison | Garrison Relay disabled 25917 | -2/Garrison | Lost 3 parts (2n1w) 26087 | -2/Garrison | Spotted B-90 Cyclops 26120 | -2/Garrison | Core integrity fell below 20% 26128 | -2/Garrison | Discovered new exit (range 12) 26134 | -2/Garrison | Entered Research 26150 | -2/Research | Lost 6 parts (6u) 26260 | -2/Research | Discovered new exit (range 6) 26300 | -2/Research | Entered Access 26300 | -1/Access | Evolved 2 slots: Propulsion x2 26400 | -1/Access | Build established: Mutant 26802 | -1/Access | System corruption reached 10% 27124 | -1/Access | System corruption reached 30% 27181 | -1/Access | Lost 7 parts (2n4u1w) 27264 | -1/Access | Spotted B-99 Colossus 27299 | -1/Access | Spotted B-99 Colossus 27299 | -1/Access | Spotted B-99 Colossus 27329 | -1/Access | Core integrity fell below 50% 27336 | -1/Access | Lost 3 allies 27336 | -1/Access | Discovered new exit (range 5) 27338 | *** | Escaped! Last Messages --------------- 27317_ Enh. Hardcell Cannon destroyed. 27328_ Knocked back. 27328_ Penetrated by Slug. 27328_ Slug penetrates Sealed Barrier. 27328_ Centrium Wheel+ destroyed. 27329_ System corrupted: Component data lost. 27332_ Imp. Hacking Suite destroyed. 27332_ Penetrated by Slug. 27332_ Slug penetrates S-43 Plague. 27332_ Penetrated by Slug. 27332_ Slug penetrates S-43 Plague. 27332_ S-43 Plague destroyed. 27332_ Slug penetrates Sealed Heavy Doors. 27332_ Penetrated by Slug. 27332_ Slug penetrates P-80 Master. 27332_ Adv. Weapon Cycler destroyed. 27334_ Main Access Shell breached. 27336_ EXIT=FOUND 27337_ P-80 Master resets S-43 Plague, system corruption cleaned. Map ----- +----------------------------------------------------+ | ?# #????## ##### # #????????? | | ?# #######+##### # #????????? | | ?# * # " ############/##???????? | | ?# " # # #???????? | | ?#""" # # #???????? | | ?# """ # # #???##### | | ?# " ! !# """ + #?? | | ?# # """S"" # ########## g g#?? | | ?# # """""" # #????????# #? """" | | ?#####/#############"#" ####?????# g #? """F | | ?????# #???????????# #?????# # """[ | | ?????# #???????????# #?????# # [[ | | ?????# #???????????# #?????# / | | ######"###?????????# #?????# # | | #?????????#% #?????#### # | | ! ######????# % #????????# #? | | # #????# #????????# #? | | + #????#"%""""""""#????????# #?? ! | | ""# " #????#"%""???????????????# #??###### | | "" ""# #????#" ""??????????????##/######### | | """" ""## ##????#"%""""""""#???????# | | """ T## #?????# [ #???????# | | """ ""## #?????#%s """"" #???????# | | """" ""## #?????# =" " #???????# | | """" "## #?????# " "" " #???????# | | "" ## #?????#s " "@ " #???????# """ " " | | "" ## ##????# " " #???????# """T""" | | ######/#"" #????# """""" #???????############ | | #????# % #??????????# " | | % #???## #??????????# """ | | ###" #???#""""""""""""??????????# """ | | #### #???##"" #??????????# " | | #?# ** #????#"" #??????????# | | #?# * ###??#"" #??????????# | | #?# #??#T #??????????# | | #?# #??#"" #??????????# | | "#?# "##??#"" #???????????? ?? | | ???# " " ######"" ###############+#### | | ???# "Y" | | ???# """ | | ???# ########/###########################"####### | | ???# #????? ????????????????????????????????? | | ???# #??? #???????????????????????????????? | | ???# #?# """ #???????????????????????????????? | | ???# ??# ""F ???????????????????????????????? | | ??? ??# "" ##??????????????????????????????? | | ??? ??+ """ #???????????????????????????????? | | ???#+#??# ??"" #???????????????????????????????? | | ????????#???? #???????????????????????????????? | | ????????????? #???????????????????????????????? | +----------------------------------------------------+ Best States ------------- Heat Dissipation 142 Coolant Potential 100 Energy Generation 65 Energy Capacity 1600 Matter Stores 440 Matter Capacity 450 Sight Range 16 Terrain Scan Density 410 Jamming Range 16 Cloak Strength 3 EM Shielding 3 Armor Coverage 2400 Resistance: KI 40 Resistance: TH 10 Weapon Cycling 25 Phase Shifting 15 Evasion (%) 55 Targeting Accuracy 16 Target Analysis 8 Core Analysis 6 Recoil Reduction 6 Matter Filtering 30 Kinecelleration 40 Offensive Hacking 12 Defensive Hacking 10 Relay Coupler Types 5 Relay Coupler Value 231 Item Schematics ----------------- None Robot Schematics ------------------ None Fabricated ------------ Nothing Repaired ---------- Nothing Studied --------- Arm. Huge Wheel | -7/Factory | Hacked Arm. Wheel | -7/Factory | Hacked Centrium Wheel | -3/Research | Hacked Alien Tech Used ----------------- None Achievements -------------- Hackathon Challenges ------------ None Game ------ Seed PhasingReflexGenerator Manual? 0 Play Time 09:06:03 Cumulative 459.8 hours Start 2026.03.17 @ 22:46:33 End 2026.03.20 @ 11:24:51 Sessions 15 Manual Loads 0 Difficulty Rogue Special Mode None Game No. 82 Rogue 82 Adventurer 0 Explorer 0 Win Type 0 Total 16 Types 7/1/5/1/0/0/1/1/0/0 Lore% 82 Gallery% 74 Achievement% 70 Wizard Run 0 Options --------- Layout 1 ASCII 0 Keyboard 1 Movement Vi Keybinds 1 Fullscreen 1 Font 36/Tamsyn Map View 50x40 Zoom Use 0% Tactical HUD 1 Map Filters NONE Filters NONE Steam 1 RUN: 386809c0-cd45-4d36-9897-90b9b67bd6f7